bitfinex-derivatives/quotes_ETHF0:USTF0_20240907
["timestamp","ask_amount","ask_price","bid_price","bid_amount"]
[1725684256019,0.366,2244.6,2244.5,0.44563]
[1725684257018,0.81162,2244.6,2244.5,0.44563]
[1725684258122,0.81162,2244.6,2244.4,0.44565]
[1725684262120,0.81162,2244.6,2244.5,0.44564]
[1725684263222,0.81162,2244.6,2244.4,0.44564]
[1725684267226,0.44564,2244.5,2244.4,0.44564]
[1725684268021,0.81163,2244.6,2244.4,0.44564]
[1725684269117,0.44564,2244.5,2244.4,0.44564]
[1725684269827,0.366,2244.6,2244.4,0.44564]
[1725684269828,0.81163,2244.6,2244.4,0.44564]
[1725684270226,0.81163,2244.6,2244.4,0.44565]
[1725684271332,0.81163,2244.6,2244.5,0.44564]
[1725684271533,0.81163,2244.6,2244.3,0.7834]
[1725684271926,0.81163,2244.6,2244.4,0.44564]
[1725684273633,0.81163,2244.6,2244.5,0.44564]
[1725684274229,0.366,2244.6,2244.5,0.44564]
[1725684274823,0.81162,2244.6,2244.5,0.44564]
[1725684275329,0.81162,2244.6,2244.5,0.84204]
[1725684275822,3.2078,2244.7,2244.6,0.44562]
[1725684276036,3.2078,2244.7,2244.6,0.82912]
[1725684276225,3.2078,2244.7,2244.6,1.22402]
[1725684277738,0.44558,2244.8,2244.7,0.4456]
[1725684278136,3.65338,2244.8,2244.7,0.4456]
[1725684278941,3.2078,2244.8,2244.7,0.4456]
[1725684279834,3.65338,2244.8,2244.7,0.4456]
[1725684282138,0.44558,2244.8,2244.7,0.4456]
[1725684285635,4.01957,2244.9,2244.7,0.4456]
[1725684286843,0.44558,2244.8,2244.7,0.4456]
[1725684292847,0.44558,2244.8,2244.6,0.82911]
[1725684293047,0.3933,2244.7,2244.6,0.82911]
[1725684293247,0.8389,2244.7,2244.6,0.82911]
[1725684293454,0.44563,2244.6,2244.5,0.44563]
[1725684293648,0.81113,2244.6,2244.5,0.44563]
[1725684294352,0.3655,2244.6,2244.5,0.44563]
[1725684294957,0.3655,2244.6,2244.5,0.81693]
[1725684295152,0.3655,2244.6,2244.5,5.27213]
[1725684296750,0.3655,2244.6,2244.5,0.81693]
[1725684297949,0.3655,2244.6,2244.5,4.79251907]
[1725684299258,0.3655,2244.6,2244.5,4.42121907]
[1725684301561,0.3655,2244.6,2244.5,4.81313077]
[1725684303658,0.3655,2244.6,2244.5,4.42123077]
[1725684303966,0.81112,2244.6,2244.5,3.39316527]
[1725684304154,1.18722,2244.6,2244.5,1.16389208]
[1725684305068,0.44566,2244.5,2244.3,0.44566]
[1725684305263,0.3669,2244.4,2244.3,0.44566]
[1725684306855,0.7416,2244.6,2244.4,0.44565]
[1725684307055,0.7416,2244.6,2244.5,0.44564]
[1725684307261,0.7416,2244.6,2244.4,1.6529]
[1725684307262,0.7416,2244.6,2244.4,2.81679208]
[1725684307462,0.3777,2244.8,2244.5,2.45389208]
[1725684307774,0.3777,2244.8,2244.6,0.7719]
[1725684307775,1.19668,2244.8,2244.6,0.7719]
[1725684309562,1.19668,2244.8,2244.6,1.21752]
[1725684309762,1.19668,2244.8,2244.6,0.7719]
[1725684310370,0.7511,2244.8,2244.6,1.21752]
[1725684310765,0.7511,2244.8,2244.6,1.2175]
[1725684312770,0.7511,2244.8,2244.5,2.45389208]
[1725684312771,1.19668,2244.8,2244.5,1.60952208]
[1725684312964,1.19668,2244.8,2244.6,3.39321479]
[1725684312965,0.3651,2244.7,2244.6,3.39321479]
[1725684314775,0.3651,2244.7,2244.6,3.83883479]
[1725684314975,0.3651,2244.7,2244.6,3.39325108]
[1725684315273,0.3651,2244.7,2244.6,5.58519866]
[1725684315589,5.2659,2244.7,2244.6,1.16389208]
[1725684315767,4.8203,2244.7,2244.5,2.91021966]
[1725684316080,0.81072,2244.7,2244.5,2.91021966]
[1725684316269,0.81072,2244.7,2244.5,1.16389208]
[1725684318669,0.44562,2244.6,2244.5,1.16389208]
[1725684318875,0.44562,2244.6,2244.5,3.39334668]
[1725684320277,0.44562,2244.6,2244.4,1.60953208]
[1725684320573,1.21374,2244.5,2244.4,1.16389208]
[1725684320780,1.11416,2244.4,2244.0,1.16389208]
[1725684320974,0.44571,2244.2,2244.0,1.16389208]
[1725684321173,0.44574,2244.0,2243.8,1.16389208]
[1725684321374,0.387,2243.9,2243.8,0.44578]
[1725684321970,0.387,2243.9,2243.8,1.60967208]
[1725684322679,0.387,2243.9,2243.8,0.44578]
[1725684323572,0.387,2243.9,2243.8,1.60967208]
[1725684323767,7.3178,2244.5,2243.8,1.60967208]
[1725684323768,8.43193,2244.5,2243.8,2.45389208]
[1725684323973,8.43193,2244.5,2244.0,0.44572]
[1725684323974,1.21019,2244.3,2244.0,0.44572]
[1725684324173,1.21019,2244.3,2244.1,0.3745]
[1725684324375,1.21019,2244.3,2244.1,0.7478]
[1725684324785,1.21019,2244.3,2244.1,1.19352]
[1725684325983,0.3884,2244.3,2244.2,0.4457]
[1725684327675,0.3884,2244.3,2244.1,1.19351]
[1725684327879,0.3884,2244.3,2244.1,0.7478]
[1725684328079,0.3884,2244.3,2244.2,1.60959208]
[1725684334680,0.3884,2244.3,2244.2,1.16389208]
[1725684334875,0.83408,2244.3,2244.2,1.16389208]
[1725684335285,0.83408,2244.3,2244.1,1.60960208]
[1725684335788,0.4457,2244.2,2244.1,1.16389208]
[1725684336580,0.4457,2244.2,2244.0,1.16389208]
[1725684336886,0.44572,2244.1,2244.0,1.16389208]
[1725684338987,0.44572,2244.1,2244.0,1.99843208]
[1725684339985,0.44572,2244.1,2244.0,1.55269208]
[1725684340373,0.81732,2244.1,2244.0,1.55269208]
[1725684341685,0.81732,2244.1,2244.0,1.95189208]
[1725684343287,0.81732,2244.1,2244.0,0.788]
[1725684344083,0.81732,2244.1,2244.0,1.23374]
[1725684345885,0.3716,2244.1,2243.9,0.44575]
[1725684346190,1.20815,2244.0,2243.8,0.44577]
[1725684346391,0.44576,2243.9,2243.8,0.44577]
[1725684348789,1.20815,2244.0,2243.8,0.44577]
[1725684349394,0.7624,2244.0,2243.8,0.44577]
[1725684349698,1.20815,2244.0,2243.8,0.44577]
[1725684350196,1.20815,2244.0,2243.8,1.60966208]
[1725684350993,1.20815,2244.0,2243.9,0.44576]
[1725684351394,0.7624,2244.0,2243.9,0.44576]
[1725684351594,0.3669,2244.0,2243.9,0.44576]
[1725684351794,0.3669,2244.0,2243.9,1.60965208]
[1725684352602,0.3669,2244.0,2243.9,0.44576]
[1725684352796,0.3716,2244.1,2244.0,0.44574]
[1725684353196,1.6811,2244.3,2244.1,0.44572]
[1725684353393,1.6811,2244.3,2244.1,0.3865]
[1725684353597,0.4457,2244.2,2244.1,0.3865]
[1725684356704,1.6811,2244.3,2244.2,0.4457]
[1725684356705,0.3911,2244.3,2244.2,0.4457]
[1725684358389,0.3911,2244.3,2244.1,0.3865]
[1725684358595,0.4457,2244.2,2244.1,0.83221]
[1725684358800,0.83679,2244.3,2244.1,0.83221]
[1725684360599,0.4457,2244.2,2244.1,0.3865]
[1725684360803,0.3911,2244.3,2243.9,1.16389208]
[1725684360804,0.44573,2244.1,2243.9,1.16389208]
[1725684361105,0.44574,2244.0,2243.9,0.44575]
[1725684361404,0.83714,2244.0,2243.9,0.44575]
[1725684361593,0.44576,2243.9,2243.8,1.99666208]
[1725684361793,1.73576,2243.9,2243.6,6.56382966]
[1725684362099,1.73576,2243.9,2243.7,0.4458]
[1725684362906,1.73576,2243.9,2243.6,4.81750208]
[1725684363199,0.44578,2243.8,2243.6,3.2078]
[1725684363406,0.3959,2243.7,2243.6,3.2078]
[1725684363601,1.2137,2243.7,2243.6,3.2078]
[1725684363803,0.7679,2243.7,2243.6,3.2078]
[1725684364601,7.3266,2243.7,2243.4,2.38904208]
[1725684364908,2.8698,2243.7,2243.4,2.38904208]
[1725684365199,2.8698,2243.7,2243.5,0.44583]
[1725684365407,2.8698,2243.7,2243.5,1.16389208]
[1725684366206,2.8698,2243.7,2243.6,1.16389208]
[1725684366405,7.3266,2243.7,2243.5,2.91021966]
[1725684366600,2.8698,2243.7,2243.5,1.16389208]
[1725684366802,2.424,2243.7,2243.5,1.16389208]
[1725684367198,2.86981,2243.7,2243.5,1.16389208]
[1725684368701,2.86981,2243.7,2243.5,1.60973208]
[1725684370295,0.44582,2243.6,2243.5,1.16389208]
[1725684371808,0.44582,2243.6,2243.4,4.13536966]
[1725684372408,0.44582,2243.6,2243.4,2.38904208]
[1725684373899,0.44582,2243.6,2243.5,0.44584]
[1725684375210,0.44582,2243.6,2243.4,2.38904208]
[1725684377506,3.09581344,2243.7,2243.5,0.44583]
[1725684377809,2.10781,2243.7,2243.6,0.44582]
[1725684378114,0.82207,2243.9,2243.7,0.44578]
[1725684378407,1.73575,2244.0,2243.9,0.44576]
[1725684378610,1.73575,2244.0,2243.8,1.22526]
[1725684379410,4.4863,2244.2,2244.1,0.44572]
[1725684379411,4.5557,2244.2,2244.1,0.44572]
[1725684380406,4.11,2244.2,2244.1,0.44572]
[1725684380608,1.6727,2244.4,2244.3,0.44568]
[1725684380809,0.3827,2244.4,2244.3,0.44568]
[1725684384310,2.49155,2244.5,2244.3,0.44568]
[1725684392811,3.2078,2244.6,2244.2,0.7842]
[1725684393012,1.29,2244.7,2244.6,0.44562]
[1725684393218,5.32059,2244.8,2244.3,1.11421]
[1725684393519,1.29,2244.7,2244.6,0.44561]
[1725684394126,1.7356,2244.7,2244.6,0.44561]
[1725684394420,1.29,2244.7,2244.6,0.44561]
[1725684394916,1.7356,2244.7,2244.5,0.44563]
[1725684395112,1.73561,2244.7,2244.6,0.44562]
[1725684395308,1.73561,2244.7,2244.5,0.44563]
[1725684395612,0.44561,2244.7,2244.6,0.44562]
[1725684395819,0.44561,2244.7,2244.2,3.992]
[1725684395820,1.29,2244.7,2244.2,3.992]
[1725684396017,0.44563,2244.6,2244.5,0.44564]
[1725684396318,0.44563,2244.6,2244.4,0.44564]
[1725684396520,0.3625,2244.5,2244.4,0.44564]
[1725684398520,0.80814,2244.5,2244.3,0.44566]
[1725684398722,0.80814,2244.5,2244.4,0.44566]
[1725684399122,0.3625,2244.5,2244.4,0.44566]
[1725684401326,1.29,2244.7,2244.2,3.992]
[1725684401511,1.29,2244.7,2244.6,0.44562]
[1725684408323,1.7356,2244.7,2244.6,0.44562]
[1725684409324,0.44563,2244.6,2244.2,3.992]
[1725684409519,0.44563,2244.6,2244.5,0.44564]
[1725684410321,1.73562,2244.7,2244.6,0.44562]
[1725684410716,1.73562,2244.7,2244.5,0.44563]
[1725684411228,1.73562,2244.7,2244.6,0.3772]
[1725684414229,1.29,2244.7,2244.6,0.82282]
[1725684415423,1.6783,2244.8,2244.7,0.4456]
[1725684416325,2.12388,2244.8,2244.7,0.4456]
[1725684416531,1.6783,2244.8,2244.7,0.4456]
[1725684418135,2.12388,2244.8,2244.7,0.4456]
[1725684421935,0.4456,2244.7,2244.6,0.82281]
[1725684423142,0.3859,2244.7,2244.6,0.82281]
[1725684423936,0.8315,2244.7,2244.6,0.82281]
[1725684425739,0.44562,2244.6,2244.5,0.44562]
[1725684426340,0.44562,2244.6,2244.5,0.84082]
[1725684427141,0.3859,2244.7,2244.6,0.44562]
[1725684428740,0.8315,2244.7,2244.6,0.44562]
[1725684432346,0.3859,2244.7,2244.6,0.44562]
[1725684435449,0.8315,2244.7,2244.6,0.44562]
[1725684436346,0.44562,2244.6,2244.4,1.60954208]
[1725684436651,0.44562,2244.6,2244.4,0.44565]
[1725684437364,0.44562,2244.6,2244.4,1.60954208]
[1725684438759,0.44562,2244.6,2244.5,0.44564]
[1725684440754,0.44562,2244.6,2244.5,4.42139917]
[1725684442054,0.83151,2244.7,2244.5,4.42139917]
[1725684442359,0.3859,2244.7,2244.6,4.42121194]
[1725684443053,0.3859,2244.7,2244.6,5.16221194]
[1725684444557,0.3859,2244.7,2244.6,4.20501104]
[1725684445053,0.8315,2244.7,2244.6,4.20501104]
[1725684445454,0.8315,2244.7,2244.6,3.39299104]
[1725684449054,0.8315,2244.7,2244.6,3.39313764]
[1725684451258,0.3859,2244.7,2244.6,4.42135854]
[1725684451461,0.3859,2244.7,2244.6,5.17735854]
[1725684452162,0.83389,2244.8,2244.7,0.4456]
[1725684452351,0.83389,2244.8,2244.7,4.23136364]
[1725684452555,0.83389,2244.8,2244.7,2.0021498]
[1725684453262,0.83389,2244.8,2244.7,1.5565498]
[1725684453459,0.83389,2244.8,2244.7,1.6105498]
[1725684453659,0.83389,2244.8,2244.7,1.1649498]
[1725684453865,0.3883,2244.8,2244.7,3.83984211]
[1725684454067,6.06466602,2245.2,2244.7,9.13944211]
[1725684454366,0.44554,2245.0,2244.9,1.16433928]
[1725684454566,0.44554,2245.0,2244.9,3.39363159]
[1725684455262,0.44554,2245.0,2244.9,1.60989928]
[1725684455863,0.44554,2245.0,2244.9,0.44556]
[1725684457065,1.60264,2245.1,2244.9,0.44556]
[1725684457462,1.60264,2245.1,2244.8,0.3916]
[1725684457463,0.44555,2245.0,2244.8,0.83717]
[1725684457669,0.44555,2245.0,2244.8,0.44557]
[1725684458564,2.4471,2245.1,2244.9,0.44556]
[1725684460062,2.89263,2245.1,2244.9,0.44556]
[1725684461670,0.44554,2245.0,2244.9,0.44556]
[1725684463067,2.4471,2245.1,2245.0,0.44554]
[1725684463068,1.20253,2245.1,2245.0,0.44554]
[1725684463566,0.757,2245.1,2245.0,0.44554]
[1725684463871,1.20252,2245.1,2245.0,0.44554]
[1725684464168,0.757,2245.1,2245.0,0.44554]
[1725684465656,1.20252,2245.1,2245.0,0.44554]
[1725684466570,0.757,2245.1,2245.0,0.44554]
[1725684468169,1.20252,2245.1,2245.0,0.44554]
[1725684468371,0.44554,2245.0,2244.9,0.83225]
[1725684468962,2.50891346,2245.1,2245.0,0.44554]
[1725684469261,2.52529658,2245.1,2245.0,0.44554]
[1725684469765,2.52529658,2245.1,2244.9,0.83225]
[1725684469963,2.50891346,2245.1,2244.9,0.83225]
[1725684470579,0.44554,2245.0,2244.9,0.83225]
[1725684471472,2.06338346,2245.1,2244.9,0.83225]
[1725684471774,0.44554,2245.0,2244.9,0.83225]
[1725684471974,2.50891346,2245.1,2245.0,0.44554]
[1725684472170,2.52529705,2245.1,2245.0,0.44554]
[1725684472363,0.44554,2245.0,2244.9,0.83225]
[1725684474572,2.52530705,2245.1,2245.0,0.44554]
[1725684474777,0.8667905,2245.1,2245.0,0.44554]
[1725684474970,0.83402345,2245.1,2245.0,0.44554]
[1725684475169,0.81764,2245.1,2245.0,0.44554]
[1725684478776,0.44554,2245.0,2244.9,1.19896]
[1725684478969,0.44554,2245.0,2244.9,0.83226]
[1725684482278,1.18973,2245.1,2244.9,0.3867]
[1725684482579,0.81763,2245.1,2245.0,0.44554]
[1725684482976,0.44554,2245.0,2244.9,0.83225]
[1725684485971,0.44554,2245.0,2244.9,0.3867]
[1725684486172,0.44554,2245.0,2244.8,0.44557]
[1725684486477,0.3688,2244.9,2244.8,0.44558]
[1725684491270,0.743,2245.1,2245.0,0.44554]
[1725684491271,1.18854,2245.1,2245.0,0.44554]
[1725684491579,0.81764,2245.1,2245.0,0.44554]
[1725684493776,0.81764,2245.1,2245.0,0.81404]
[1725684494276,0.81764,2245.1,2245.0,0.3685]
[1725684494480,0.81764,2245.1,2244.9,0.44555]
[1725684494682,1.19624,2245.1,2244.9,0.44555]
[1725684495383,0.44554,2245.0,2244.9,0.44555]
[1725684495791,1.19624,2245.1,2244.9,0.44555]
[1725684496690,1.19624,2245.1,2244.9,1.60988928]
[1725684497385,0.44554,2245.0,2244.9,1.60988928]
[1725684498879,1.19624,2245.1,2245.0,0.44554]
[1725684499289,0.81764,2245.1,2245.0,0.44554]
[1725684499484,0.81764,2245.1,2245.0,1.56393928]
[1725684499686,0.81764,2245.1,2245.0,2.00947928]
[1725684499886,0.81764,2245.1,2244.9,0.44555]
[1725684502788,0.81764,2245.1,2245.0,0.44554]
[1725684506677,0.3721,2245.1,2245.0,0.44554]
[1725684507993,0.81762,2245.1,2245.0,1.60987928]
[1725684509282,0.3721,2245.1,2245.0,1.60987928]
[1725684509484,0.3721,2245.1,2245.0,4.78511745]
[1725684510089,0.3721,2245.1,2245.0,4.78637205]
[1725684511188,0.3657,2245.2,2245.1,0.44552]
[1725684511386,0.3657,2245.2,2245.1,4.23638963]
[1725684511589,0.3657,2245.2,2245.1,4.60798963]
[1725684511794,0.3896,2245.3,2245.2,0.4455]
[1725684511994,0.3896,2245.3,2245.2,1.61028243]
[1725684515088,0.3896,2245.3,2245.2,0.4455]
[1725684516297,0.3896,2245.3,2245.2,1.61028243]
[1725684517593,0.3896,2245.3,2245.2,0.4455]
[1725684519996,0.83508,2245.3,2245.2,0.4455]
[1725684520390,0.3896,2245.3,2245.2,0.4455]
[1725684520892,0.83508,2245.3,2245.2,0.4455]
[1725684522395,0.3896,2245.3,2245.2,0.4455]
[1725684524498,0.83508,2245.3,2245.2,0.4455]
[1725684529503,11.95694,2245.3,2244.7,1.16478243]
[1725684529700,3.2078,2245.0,2244.5,1.16478243]
[1725684529892,0.4456,2244.7,2244.5,0.44563]
[1725684530092,1.22982,2244.6,2244.5,1.16478243]
[1725684530606,0.44564,2244.5,2244.2,2.90048243]
[1725684530791,0.44566,2244.4,2244.2,2.90048243]
[1725684531200,0.81305,2244.5,2244.2,2.90048243]
[1725684532397,0.44567,2244.4,2244.2,2.45478243]
[1725684532597,0.44567,2244.4,2244.2,1.29]
[1725684532804,0.44567,2244.4,2244.2,1.7357]
[1725684533193,0.44567,2244.4,2244.2,1.29]
[1725684533396,0.44567,2244.4,2244.0,9.87542399]
[1725684533397,4.456,2244.3,2244.0,9.29278367]
[1725684533696,5.04457868,2244.3,2244.0,8.12800124]
[1725684533998,0.81561,2244.2,2244.0,8.12800124]
[1725684534400,0.3754,2244.1,2244.0,8.12800124]
[1725684535201,0.82112,2244.1,2244.0,8.12800124]
[1725684535403,0.3754,2244.1,2244.0,8.12800124]
[1725684537808,0.82112,2244.1,2244.0,8.12800124]
[1725684538310,0.3754,2244.1,2244.0,8.12800124]
[1725684539108,0.82112,2244.1,2244.0,8.12800124]
[1725684539910,0.3754,2244.1,2244.0,8.12800124]
[1725684540504,0.82112,2244.1,2244.0,8.12800124]
[1725684540909,0.3754,2244.1,2244.0,8.12800124]
[1725684541212,0.81561,2244.2,2244.0,8.12800124]
[1725684541414,0.3674,2244.5,2244.2,0.44569]
[1725684541710,0.3734,2244.6,2244.3,2.10707]
[1725684541906,0.81903,2244.6,2244.4,1.29]
[1725684542303,0.81903,2244.6,2244.4,0.44566]
[1725684542304,0.3734,2244.6,2244.4,0.44566]
[1725684542499,0.3734,2244.6,2244.4,1.29]
[1725684542707,4.55561,2244.7,2244.5,0.44564]
[1725684542904,0.44561,2244.7,2244.5,0.4002]
[1725684543407,0.3747,2244.8,2244.5,0.4002]
[1725684543612,0.44562,2244.6,2244.5,0.4002]
[1725684544098,0.44561,2244.7,2244.5,0.4002]
[1725684544302,0.44561,2244.7,2244.5,0.84584]
[1725684544502,0.4456,2244.7,2244.5,0.84584]
[1725684544913,0.44559,2244.8,2244.6,0.44562]
[1725684546213,0.44558,2244.8,2244.6,0.44562]
[1725684546712,0.44556,2245.0,2244.7,1.73558]
[1725684547013,0.44553,2245.1,2244.9,1.29]
[1725684547414,0.44553,2245.1,2244.9,1.6559]
[1725684549213,0.44554,2245.0,2244.9,0.3659]
[1725684551405,0.44554,2245.0,2244.8,0.82398]
[1725684551606,0.83764,2245.0,2244.8,0.82398]
[1725684554017,0.3921,2245.0,2244.9,0.44556]
[1725684554217,3.65333,2245.1,2244.9,0.44556]
[1725684555218,0.44554,2245.0,2244.9,0.44556]
[1725684555519,0.44554,2245.0,2244.8,0.82397]
[1725684557816,0.44556,2244.9,2244.8,0.82397]
[1725684558014,0.44556,2245.0,2244.8,0.82397]
[1725684561017,3.65334,2245.1,2244.9,0.44556]
[1725684561522,3.65334,2245.1,2245.0,0.3659]
[1725684567220,3.65334,2245.1,2245.0,0.81144]
[1725684567421,3.65334,2245.1,2245.0,0.3659]
[1725684570415,0.44554,2245.1,2245.0,0.3659]
[1725684572830,0.44554,2245.0,2244.9,0.44555]
[1725684573030,0.84194,2245.0,2244.9,0.44555]
[1725684576734,0.3964,2245.0,2244.9,0.44555]
[1725684578136,0.84194,2245.0,2244.9,0.44555]
[1725684581536,0.3964,2245.0,2244.9,0.44555]
[1725684582437,0.44553,2245.1,2244.8,0.7661]
[1725684582635,0.3822,2245.2,2245.1,0.44552]
[1725684585437,0.44548,2245.3,2245.1,0.44552]
[1725684585736,4.03518,2245.3,2245.2,0.3741]
[1725684588042,0.82738,2245.3,2245.2,0.3741]
[1725684588636,4.03518,2245.3,2245.2,0.3741]
[1725684589041,4.03518,2245.3,2245.1,0.44552]
[1725684589441,4.03518,2245.3,2245.1,1.61030243]
[1725684590446,4.03518,2245.3,2245.1,0.44552]
[1725684593952,4.03518,2245.3,2245.2,0.4455]
[1725684596446,0.82738,2245.3,2245.2,0.4455]
[1725684596647,4.03518,2245.3,2245.2,0.4455]
[1725684597551,4.0352,2245.3,2245.1,1.61029243]
[1725684597751,3.5897,2245.3,2245.1,1.61029243]
[1725684598058,4.0352,2245.3,2245.1,1.61029243]
[1725684599657,0.8274,2245.3,2245.1,1.61029243]
[1725684600157,4.0352,2245.3,2245.1,1.61029243]
[1725684600949,4.0352,2245.3,2245.1,0.44551]
[1725684601358,4.0352,2245.3,2245.2,0.4455]
[1725684601549,0.8274,2245.3,2245.2,0.4455]
[1725684601749,4.0352,2245.3,2245.2,0.4455]
[1725684602356,4.0352,2245.3,2245.1,0.44551]
[1725684603665,4.0352,2245.3,2245.1,0.44552]
[1725684604357,4.0352,2245.3,2245.2,0.4455]
[1725684605667,0.8274,2245.3,2245.2,0.4455]
[1725684605869,4.0352,2245.3,2245.2,0.4455]
[1725684609174,0.4455,2245.2,2245.1,1.61029243]
[1725684609470,0.4455,2245.2,2245.1,1.16478243]
[1725684609682,0.44552,2245.1,2245.0,0.44554]
[1725684609879,0.44552,2245.1,2244.9,1.61033243]
[1725684610071,1.1411,2245.0,2244.9,1.61033243]
[1725684611276,0.7582,2245.0,2244.9,3.83933395]
[1725684611477,0.7582,2245.0,2244.9,4.23643395]
[1725684612679,0.7582,2245.0,2244.9,0.84265]
[1725684614778,0.3863,2245.0,2244.9,0.84265]
[1725684616276,0.3863,2245.0,2244.9,2.00743243]
[1725684619373,0.3863,2245.0,2244.9,2.38523243]
[1725684620775,0.3863,2245.0,2244.9,5.19682954]
[1725684621782,0.3863,2245.0,2244.9,3.44940679]
[1725684625287,0.3863,2245.0,2244.9,5.77784357]
[1725684627879,0.3863,2245.0,2244.9,2.38395051]
[1725684632283,0.3863,2245.0,2244.9,4.61290013]
[1725684634390,0.3863,2245.0,2244.9,2.38395051]
[1725684635896,0.3863,2245.0,2244.9,5.77783792]
[1725684637595,0.3863,2245.0,2244.9,5.00293792]
[1725684638697,0.3863,2245.0,2244.9,4.41975541]
[1725684641798,0.3863,2245.0,2244.9,1.16370892]
[1725684641799,11.28624,2245.0,2244.9,1.16370892]
[1725684642098,0.44558,2244.8,2244.7,1.16370892]
[1725684642291,0.4456,2244.7,2244.6,1.16370892]
[1725684642491,8.8801,2244.7,2244.5,2.45370892]
[1725684642695,0.3986,2244.6,2244.5,2.89934892]
[1725684642893,0.3986,2244.6,2244.5,1.73564]
[1725684645202,3.6064,2244.6,2244.5,1.73564]
[1725684645405,3.2078,2244.9,2244.8,0.44558]
[1725684645594,4.11,2245.2,2244.8,1.73558]
[1725684645595,1.20494,2245.1,2244.8,1.73558]
[1725684645799,1.20494,2245.1,2244.8,2.10868]
[1725684648403,1.20494,2245.1,2244.8,1.73558]
[1725684649500,0.44554,2245.0,2244.8,1.73558]
[1725684649702,0.3699,2244.9,2244.8,1.73558]
[1725684649906,0.3699,2244.9,2244.8,0.44558]
[1725684650504,1.20493,2245.1,2244.8,0.44558]
[1725684650704,1.58604,2245.1,2244.8,0.81388]
[1725684650896,1.58604,2245.1,2244.8,1.97758892]
[1725684651701,0.44554,2245.0,2244.8,1.97758892]
[1725684653398,4.79383,2245.1,2244.9,0.44556]
[1725684653800,4.79383,2245.1,2244.8,1.97757892]
[1725684654507,1.58603,2245.1,2244.8,1.97757892]
[1725684654809,4.79383,2245.1,2244.8,1.97757892]
[1725684656503,4.79383,2245.1,2244.9,0.44556]
[1725684656707,4.79383,2245.1,2244.9,0.81136]
[1725684657112,4.79383,2245.1,2244.9,1.97506892]
[1725684657906,4.79383,2245.1,2244.9,0.81136]
[1725684659606,3.9672,2245.1,2244.9,0.81136]
[1725684659912,4.41272,2245.1,2245.0,0.3646]
[1725684662320,4.41272,2245.1,2244.9,1.52950892]
[1725684662612,3.9672,2245.1,2244.9,1.97506892]
[1725684662813,3.5994,2245.1,2245.0,1.73554]
[1725684664221,3.5994,2245.1,2245.0,1.29]
[1725684666614,4.40623,2245.1,2244.9,1.73555]
[1725684667414,4.40623,2245.1,2244.9,2.10535]
[1725684667612,3.9607,2245.1,2244.9,2.10535]
[1725684669809,3.9607,2245.1,2244.9,0.81535]
[1725684670121,3.9607,2245.1,2244.9,2.10535]
[1725684670526,0.7529,2245.1,2244.9,2.10535]
[1725684670816,0.8452,2245.3,2245.0,0.44553]
[1725684671006,0.3835,2245.2,2245.1,0.3782]
[1725684671412,0.39988257,2245.2,2245.1,0.82372]
[1725684671813,0.39988257,2245.2,2245.1,0.3782]
[1725684672411,0.39988245,2245.2,2245.1,0.3782]
[1725684672614,3.60768245,2245.2,2245.1,0.3782]
[1725684673417,3.60768245,2245.2,2245.1,0.82372]
[1725684674530,3.60768245,2245.2,2245.1,0.3782]
[1725684674734,3.60768245,2245.2,2245.1,0.82372]
[1725684675735,3.60768237,2245.2,2245.1,0.82372]
[1725684676129,3.60768237,2245.2,2245.1,0.3782]
[1725684676532,4.05318237,2245.2,2245.1,0.3782]
[1725684676833,3.60768237,2245.2,2245.1,0.3782]
[1725684679134,0.39988237,2245.2,2245.1,0.3782]
[1725684679338,3.5913,2245.2,2245.1,0.3782]
[1725684681535,0.3835,2245.2,2245.1,0.3782]
[1725684681736,3.5913,2245.2,2245.1,0.3782]
[1725684683332,0.3835,2245.2,2245.1,0.3782]
[1725684685536,0.3835,2245.2,2245.1,0.82372]
[1725684688240,0.3835,2245.2,2245.1,1.98742892]
[1725684690739,3.5913,2245.2,2245.1,1.98742892]
[1725684691348,0.3835,2245.2,2245.1,1.98742892]
[1725684691546,0.3835,2245.2,2245.1,4.21630108]
[1725684691746,3.5913,2245.2,2245.1,4.21630108]
[1725684693951,0.3835,2245.2,2245.1,4.21630155]
[1725684694542,3.5913,2245.2,2245.1,4.21630155]
[1725684695145,0.3835,2245.2,2245.1,4.21630155]
[1725684695450,3.5913,2245.2,2245.1,4.21630155]
[1725684695855,0.3992,2245.3,2245.1,6.0878369]
[1725684696153,0.3992,2245.3,2245.2,5.13875202]
[1725684696355,4.05248,2245.3,2245.2,3.39349775]
[1725684696547,4.44908,2245.3,2245.2,1.16462512]
[1725684697152,4.44908,2245.3,2245.1,1.16462512]
[1725684697451,0.3792,2245.2,2245.1,1.16462512]
[1725684697652,0.3792,2245.2,2245.1,3.39343031]
[1725684698055,0.3792,2245.2,2245.1,3.97405946]
[1725684698259,0.3792,2245.2,2245.1,5.13873216]
[1725684698454,0.3792,2245.2,2245.1,3.97405946]
[1725684698754,0.3792,2245.2,2245.1,1.61026582]
[1725684698952,0.3792,2245.2,2245.1,3.83908725]
[1725684700260,0.8247,2245.2,2245.1,3.39356725]
[1725684700556,8.71075585,2245.6,2245.1,9.13796725]
[1725684700757,0.44544,2245.5,2245.4,1.16474582]
[1725684701057,0.44546,2245.4,2245.3,2.45474582]
[1725684701259,0.44546,2245.4,2245.3,4.68346355]
[1725684702256,0.44546,2245.4,2245.3,2.45474582]
[1725684702457,0.44546,2245.4,2245.3,3.39346482]
[1725684702662,0.44546,2245.4,2245.3,1.16474582]
[1725684703048,3.2078,2245.6,2245.4,0.44546]
[1725684703252,0.44546,2245.4,2245.3,1.29]
[1725684703452,0.44546,2245.4,2245.2,4.03053582]
[1725684703651,0.44548,2245.3,2245.2,2.86579]